fUSD/lending_fUSD_20251223
["ID","MTS","AMOUNT","RATE_DAILY","PERIOD"]
[399539686,1766465442984,-1500.0,0.00016149,2]
[399539687,1766465442994,-250.0,0.00016149,2]
[399539688,1766465443004,-1500.0,0.00016149,2]
[399539689,1766465443013,-250.0,0.00016149,2]
[399539690,1766465443023,-1000.0,0.00016149,2]
[399539691,1766465443032,-250.0,0.00016149,2]
[399539692,1766465443042,-500.0,0.00016149,2]
[399539693,1766465443052,-261.84535505,0.00016149,2]
[399539694,1766465443062,-500.0,0.00016149,2]
[399539695,1766465443074,-500.0,0.00016149,2]
[399539696,1766465443084,-500.0,0.00016149,2]
[399539697,1766465443094,-721.12765535,0.00016149,2]
[399539698,1766465443104,-500.0,0.00016149,2]
[399539699,1766465443113,-500.0,0.00016149,2]
[399539700,1766465443123,-500.0,0.00016149,2]
[399539701,1766465443132,-518.9281871,0.00016149,2]
[399539702,1766465443142,-1000.0,0.00016149,2]
[399539703,1766465443152,-1000.0,0.00016149,2]
[399539704,1766465443161,-750.0,0.00016149,2]
[399539705,1766465443172,-1108.0,0.00016149,2]
[399539706,1766465443181,-620.0,0.00016149,2]
[399539707,1766465443191,-500.0,0.00016149,2]
[399539708,1766465443201,-500.0,0.00016149,2]
[399539709,1766465443210,-500.0,0.00016149,2]
[399539710,1766465443220,-500.0,0.00016149,2]
[399539711,1766465443230,-500.0,0.00016149,2]
[399539712,1766465443240,-322.6107,0.00016149,2]
[399539713,1766465443252,-500.0,0.00016149,2]
[399539714,1766465443263,-313.36106104,0.00016149,2]
[399539715,1766465443272,-500.0,0.00016149,2]
[399539716,1766465443282,-500.0,0.00016149,2]
[399539717,1766465443292,-500.0,0.00016149,2]
[399539718,1766465443302,-500.0,0.00016149,2]
[399539719,1766465443312,-500.0,0.00016149,2]
[399539720,1766465443322,-1075.03616048,0.00016356,2]
[399539721,1766465443332,-255.0,0.00016383,2]
[399539722,1766465443341,-664.61265672,0.00016436,2]
[399539723,1766465443350,-7560.9,0.00016438,2]
[399539724,1766465443360,-500.0,0.00016438,2]
[399539725,1766465443370,-500.0,0.00016438,2]
[399539726,1766465443379,-500.0,0.00016438,2]
[399539727,1766465443388,-500.0,0.00016438,2]
[399539728,1766465443399,-645.07940261,0.00016438,2]
[399539729,1766465443411,-600.0,0.00016438,2]
[399539730,1766465443420,-800.56570297,0.00016438,2]
[399539731,1766465443430,-16846.26627872,0.00016455,2]
[399539733,1766465443439,-189.0,0.00016462,2]
[399539736,1766465443450,-189.0,0.0001654,2]
[399539737,1766465443460,-1557.0,0.00016555,2]
[399539739,1766465443470,-250.0,0.00016569,2]
[399539741,1766465443481,-152.53710827,0.00016654,2]
[399539742,1766465443492,-10000.0,0.00016654,2]
[399539743,1766465443502,-1948.6765329,0.0001666,2]
[399539744,1766465443512,-189.0,0.00016661,2]
[399539745,1766465443523,-217.15233878,0.00016697,2]
[399539746,1766465443532,-595.37131296,0.00016697,2]
[399539747,1766465443542,-150.0,0.00016699,2]
[399539748,1766465443552,-500.0,0.00016699,2]
[399539749,1766465443562,-150.0,0.00016699,2]
[399539750,1766465443571,-150.0,0.00016699,2]
[399539751,1766465443581,-150.0,0.00016699,2]
[399539752,1766465443590,-156.04699781,0.00016699,2]
[399539753,1766465443600,-152.24328281,0.00016699,2]
[399539754,1766465443609,-150.0,0.00016699,2]
[399539755,1766465443619,-150.0,0.00016699,2]
[399539756,1766465443628,-150.0,0.00016699,2]
[399539757,1766465443638,-151.45388092,0.00016699,2]
[399539758,1766465443648,-500.0,0.00016699,2]
[399539759,1766465443658,-150.0,0.00016699,2]
[399539760,1766465443668,-201.41254181,0.00016699,2]
[399539761,1766465443677,-500.0,0.00016699,2]
[399539762,1766465443687,-150.0,0.00016699,2]
[399539763,1766465443697,-500.0,0.00016699,2]
[399539764,1766465443706,-500.0,0.00016699,2]
[399539765,1766465443716,-500.0,0.00016699,2]
[399539766,1766465443725,-150.0,0.00016699,2]
[399539767,1766465443736,-500.0,0.00016699,2]
[399539768,1766465443745,-564.0,0.00016699,2]
[399539769,1766465443754,-150.0,0.00016699,2]
[399539770,1766465443763,-204.40661503,0.00016699,2]
[399539771,1766465443773,-153.0569396,0.00016699,2]
[399539772,1766465443784,-715.0,0.00016699,2]
[399539773,1766465443795,-500.0,0.00016699,2]
[399539774,1766465443806,-500.0,0.00016699,2]
[399539775,1766465443815,-150.0,0.00016699,2]
[399539776,1766465443825,-150.0,0.00016699,2]
[399539777,1766465443835,-500.0,0.00016699,2]
[399539778,1766465443844,-500.0,0.00016699,2]
[399539779,1766465443854,-474.0,0.00016699,2]
[399539780,1766465443863,-157.11554878,0.00016699,2]
[399539781,1766465443873,-500.0,0.00016699,2]
[399539782,1766465443883,-500.0,0.00016699,2]
[399539783,1766465443892,-500.0,0.00016699,2]
[399539784,1766465443902,-1005.0,0.00016699,2]
[399539785,1766465443912,-150.0,0.00016699,2]
[399539786,1766465443922,-500.0,0.00016699,2]
[399539787,1766465443932,-150.0,0.00016699,2]
[399539788,1766465443941,-962.5,0.00016712,2]
[399539789,1766465443951,-739.32,0.00016726,2]
[399539790,1766465443961,-150.0,0.00016726,2]
[399539791,1766465443970,-500.0,0.00016726,2]
[399539792,1766465443980,-150.0,0.00016726,2]
[399539793,1766465443990,-150.0,0.00016726,2]
[399539794,1766465444000,-150.0,0.00016726,2]
[399539795,1766465444010,-150.0,0.00016726,2]
[399539796,1766465444019,-206.73241597,0.00016726,2]
[399539797,1766465444028,-150.0,0.00016726,2]
[399539798,1766465444038,-500.0,0.00016726,2]
[399539799,1766465444047,-150.0,0.00016726,2]
[399539800,1766465444058,-500.0,0.00016726,2]
[399539801,1766465444069,-150.0,0.00016726,2]
[399539802,1766465444078,-500.0,0.00016726,2]
[399539803,1766465444088,-500.0,0.00016726,2]
[399539804,1766465444099,-500.0,0.00016726,2]
[399539805,1766465444108,-220.89163022,0.00016726,2]
[399539806,1766465444119,-500.0,0.00016726,2]
[399539807,1766465444128,-564.0,0.00016726,2]
[399539808,1766465444138,-150.0,0.00016726,2]
[399539809,1766465444147,-715.0,0.00016726,2]
[399539810,1766465444157,-500.0,0.00016726,2]
[399539811,1766465444167,-500.0,0.00016726,2]
[399539812,1766465444176,-150.0,0.00016726,2]
[399539813,1766465444186,-150.0,0.00016726,2]
[399539814,1766465444195,-500.0,0.00016726,2]
[399539815,1766465444204,-474.0,0.00016726,2]
[399539816,1766465444214,-500.0,0.00016726,2]
[399539817,1766465444223,-500.0,0.00016726,2]
[399539818,1766465444233,-500.0,0.00016726,2]
[399539819,1766465444243,-500.0,0.00016726,2]
[399539820,1766465444253,-1005.0,0.00016726,2]
[399539821,1766465444263,-500.0,0.00016726,2]
[399539822,1766465444272,-150.0,0.00016754,2]
[399539823,1766465444282,-500.0,0.00016754,2]
[399539824,1766465444292,-223.15728325,0.00016754,2]
[399539825,1766465444301,-209.58315062,0.00016754,2]
[399539826,1766465444311,-150.0,0.00016754,2]
[399539827,1766465444321,-150.0,0.00016754,2]
[399539828,1766465444330,-150.0,0.00016754,2]
[399539829,1766465444340,-500.0,0.00016754,2]
[399539830,1766465444349,-150.0,0.00016754,2]
[399539831,1766465444358,-500.0,0.00016754,2]
[399539832,1766465444368,-150.0,0.00016754,2]
[399539833,1766465444377,-500.0,0.00016754,2]
[399539834,1766465444387,-500.0,0.00016754,2]
[399539835,1766465444396,-500.0,0.00016754,2]
[399539836,1766465444412,-500.0,0.00016754,2]
[399539837,1766465444421,-564.0,0.00016754,2]
[399539838,1766465444431,-200.0,0.00016754,2]
[399539839,1766465444440,-715.0,0.00016754,2]
[399539840,1766465444451,-500.0,0.00016754,2]
[399539841,1766465444459,-500.0,0.00016754,2]
[399539842,1766465444469,-150.0,0.00016754,2]
[399539843,1766465444480,-171.44382844,0.00016754,2]
[399539844,1766465444490,-500.0,0.00016754,2]
[399539845,1766465444499,-474.0,0.00016754,2]
[399539846,1766465444510,-500.0,0.00016754,2]
[399539847,1766465444519,-500.0,0.00016754,2]
[399539848,1766465444529,-500.0,0.00016754,2]
[399539849,1766465444538,-500.0,0.00016754,2]
[399539850,1766465444548,-1005.0,0.00016754,2]
[399539851,1766465444557,-500.0,0.00016754,2]
[399539852,1766465444566,-189.0,0.00016778,2]
[399539853,1766465444576,-168.39567011,0.00016781,2]
[399539854,1766465444585,-500.0,0.00016781,2]
[399539855,1766465444594,-160.24705155,0.00016781,2]
[399539856,1766465444603,-237.96567744,0.00016781,2]
[399539857,1766465444613,-150.82734528,0.00016781,2]
[399539858,1766465444622,-157.32824713,0.00016781,2]
[399539859,1766465444632,-150.0,0.00016781,2]
[399539860,1766465444641,-500.0,0.00016781,2]
[399539861,1766465444650,-187.01383122,0.00016781,2]
[399539862,1766465444659,-500.0,0.00016781,2]
[399539863,1766465444669,-500.0,0.00016781,2]
[399539864,1766465444678,-500.0,0.00016781,2]
[399539865,1766465444687,-464.54142088,0.00016781,2]
[399539866,1766465444697,-564.0,0.00016781,2]
[399539867,1766465444706,-715.0,0.00016781,2]
[399539868,1766465444716,-452.2515866,0.00016781,2]
[399539869,1766465444726,-500.0,0.00016781,2]
[399539870,1766465444736,-150.0,0.00016781,2]
[399539871,1766465444745,-500.0,0.00016781,2]
[399539872,1766465444755,-474.0,0.00016781,2]
[399539873,1766465444764,-500.0,0.00016781,2]
[399539874,1766465444774,-500.0,0.00016781,2]
[399539875,1766465444783,-500.0,0.00016781,2]
[399539876,1766465444793,-500.0,0.00016781,2]
[399539877,1766465444802,-1005.0,0.00016781,2]
[399539878,1766465444812,-500.0,0.00016781,2]
[399539879,1766465444822,-189.0,0.00016799,2]
[399539880,1766465444832,-500.0,0.00016809,2]
[399539881,1766465444842,-207.3149885,0.00016809,2]
[399539882,1766465444852,-500.0,0.00016809,2]
[399539883,1766465444862,-331.16189446,0.00016809,2]
[399539884,1766465444871,-500.0,0.00016809,2]
[399539885,1766465444881,-500.0,0.00016809,2]
[399539886,1766465444891,-564.0,0.00016809,2]
[399539887,1766465444900,-715.0,0.00016809,2]
[399539888,1766465444911,-500.0,0.00016809,2]
[399539889,1766465444921,-240.64119308,0.00016809,2]
[399539890,1766465444932,-500.0,0.00016809,2]
[399539891,1766465444942,-474.0,0.00016809,2]
[399539892,1766465444952,-500.0,0.00016809,2]
[399539893,1766465444962,-500.0,0.00016809,2]
[399539894,1766465444971,-500.0,0.00016809,2]
[399539895,1766465444982,-500.0,0.00016809,2]
[399539896,1766465444992,-1005.0,0.00016809,2]
[399539897,1766465445002,-500.0,0.00016809,2]
[399539898,1766465445231,-500.0,0.00016836,2]
[399539899,1766465445270,-500.0,0.00016836,2]
[399539900,1766465445280,-500.0,0.00016836,2]
[399539901,1766465445289,-500.0,0.00016836,2]
[399539902,1766465445299,-564.0,0.00016836,2]
[399539903,1766465445309,-715.0,0.00016836,2]
[399539904,1766465445318,-500.0,0.00016836,2]
[399539905,1766465445328,-500.0,0.00016836,2]
[399539906,1766465445337,-474.0,0.00016836,2]
[399539907,1766465445347,-265.16707175,0.00016836,2]
[399539908,1766465445357,-500.0,0.00016836,2]
[399539909,1766465445366,-308.19288149,0.00016836,2]
[399539910,1766465445376,-500.0,0.00016836,2]
[399539911,1766465445385,-1005.0,0.00016836,2]
[399539912,1766465445395,-500.0,0.00016836,2]
[399539913,1766465445408,-1557.0,0.00016845,2]
[399539914,1766465445418,-332.18436554,0.00016863,2]
[399539915,1766465445427,-500.0,0.00016863,2]
[399539916,1766465445437,-500.0,0.00016863,2]
[399539917,1766465445447,-500.0,0.00016863,2]
[399539918,1766465445456,-564.0,0.00016863,2]
[399539919,1766465445466,-715.0,0.00016863,2]
[399539920,1766465445477,-500.0,0.00016863,2]
[399539921,1766465445486,-500.0,0.00016863,2]
[399539922,1766465445496,-474.0,0.00016863,2]
[399539923,1766465445506,-500.0,0.00016863,2]
[399539924,1766465445516,-500.0,0.00016863,2]
[399539925,1766465445526,-1005.0,0.00016863,2]
[399539926,1766465445535,-500.0,0.00016863,2]
[399539927,1766465445545,-200.0,0.00016864,2]
[399539928,1766465445555,-502.0,0.00016877,2]
[399539929,1766465445564,-568.69580303,0.00016891,2]
[399539930,1766465445573,-500.0,0.00016891,2]
[399539931,1766465445583,-500.0,0.00016891,2]
[399539932,1766465445592,-564.0,0.00016891,2]
[399539933,1766465445602,-715.0,0.00016891,2]
[399539934,1766465445612,-500.0,0.00016891,2]
[399539935,1766465445621,-500.0,0.00016891,2]
[399539936,1766465445631,-474.0,0.00016891,2]
[399539937,1766465445640,-453.68455195,0.00016891,2]
[399539938,1766465445650,-500.0,0.00016891,2]
[399539939,1766465445660,-1005.0,0.00016891,2]
[399539940,1766465445669,-630.05295224,0.00016891,2]
[399539941,1766465445679,-397.76244075,0.00016899,2]
[399539942,1766465445688,-204.73820807,0.000169,2]
[399539943,1766465445698,-1056.89906542,0.000169,2]
[399539944,1766465445708,-958.46474459,0.000169,2]
[399539945,1766465445717,-212.29783598,0.000169,2]
[399539946,1766465445728,-304.72289638,0.000169,2]
[399539947,1766465445737,-16846.26627872,0.000169,2]
[399539948,1766465445747,-500.0,0.000169,2]
[399539949,1766465445756,-500.0,0.000169,2]
[399539950,1766465445765,-500.0,0.000169,2]
[399539951,1766465445775,-500.0,0.000169,2]
[399539952,1766465445784,-500.0,0.000169,2]
[399539953,1766465445794,-500.0,0.000169,2]
[399539954,1766465445804,-500.0,0.000169,2]
[399539955,1766465445814,-500.0,0.000169,2]
[399539956,1766465445824,-500.0,0.000169,2]
[399539957,1766465445833,-500.0,0.000169,2]
[399539958,1766465445843,-500.0,0.000169,2]
[399539959,1766465445852,-500.0,0.000169,2]
[399539960,1766465445862,-500.0,0.000169,2]
[399539961,1766465445873,-500.0,0.000169,2]
[399539962,1766465445883,-500.0,0.000169,2]
[399539963,1766465445894,-500.0,0.000169,2]
[399539964,1766465445904,-500.0,0.000169,2]
[399539965,1766465445913,-500.0,0.000169,2]
[399539966,1766465445923,-500.0,0.000169,2]
[399539967,1766465445932,-500.0,0.000169,2]
[399539968,1766465445942,-500.0,0.000169,2]
[399539969,1766465445952,-500.0,0.000169,2]
[399539970,1766465445962,-500.0,0.000169,2]
[399539971,1766465445971,-500.0,0.000169,2]
[399539972,1766465445981,-500.0,0.000169,2]
[399539973,1766465445990,-420.10008661,0.000169,2]
[399539974,1766465446000,-8255.0,0.000169,2]
[399539975,1766465446009,-500.0,0.00016918,2]
[399539976,1766465446019,-500.0,0.00016918,2]
[399539977,1766465446029,-564.0,0.00016918,2]
[399539978,1766465446038,-715.0,0.00016918,2]
[399539979,1766465446048,-500.0,0.00016918,2]
[399539980,1766465446057,-500.0,0.00016918,2]
[399539981,1766465446067,-474.0,0.00016918,2]
[399539982,1766465446077,-500.0,0.00016918,2]
[399539983,1766465446087,-1005.0,0.00016918,2]
[399539984,1766465446096,-500.0,0.00016946,2]
[399539985,1766465446106,-218.80351721,0.00016946,2]
[399539986,1766465446115,-564.0,0.00016946,2]
[399539987,1766465446125,-715.0,0.00016946,2]
[399539988,1766465446134,-500.0,0.00016946,2]
[399539989,1766465446144,-500.0,0.00016946,2]
[399539990,1766465446154,-474.0,0.00016946,2]
[399539991,1766465446163,-1005.0,0.00016946,2]
[399539992,1766465446172,-500.0,0.00016946,2]
[399539993,1766465446182,-917.0,0.00016959,2]
[399539994,1766465446191,-160.0,0.00016959,2]
[399539995,1766465446200,-500.0,0.00016973,2]
[399539996,1766465446209,-500.0,0.00016973,2]
[399539997,1766465446219,-500.0,0.00016973,2]
[399539998,1766465446228,-500.0,0.00016973,2]
[399539999,1766465446238,-500.0,0.00016973,2]
[399540000,1766465446247,-500.0,0.00016973,2]
[399540001,1766465446257,-500.0,0.00016973,2]
[399540002,1766465446266,-500.0,0.00016973,2]
[399540003,1766465446275,-500.0,0.00016973,2]
[399540004,1766465446285,-500.0,0.00016973,2]
[399540005,1766465446295,-500.0,0.00016973,2]
[399540006,1766465446305,-500.0,0.00016973,2]
[399540007,1766465446314,-500.0,0.00016973,2]
[399540008,1766465446324,-500.0,0.00016973,2]
[399540009,1766465446334,-501.72018593,0.00016973,2]
[399540010,1766465446343,-500.0,0.00016973,2]
[399540011,1766465446352,-500.0,0.00016973,2]
[399540012,1766465446362,-367.89785786,0.00016973,2]
[399540013,1766465446371,-500.0,0.00016973,2]
[399540014,1766465446380,-500.0,0.00016973,2]
[399540015,1766465446389,-500.0,0.00016973,2]
[399540016,1766465446399,-500.0,0.00016973,2]
[399540017,1766465446412,-500.0,0.00016973,2]
[399540018,1766465446421,-500.0,0.00016973,2]
[399540019,1766465446431,-500.66742167,0.00016973,2]
[399540020,1766465446440,-500.0,0.00016973,2]
[399540021,1766465446451,-500.0,0.00016973,2]
[399540022,1766465446461,-500.0,0.00016973,2]
[399540023,1766465446470,-500.0,0.00016973,2]
[399540024,1766465446480,-500.0,0.00016973,2]
[399540025,1766465446490,-500.0,0.00016973,2]
[399540026,1766465446500,-500.0,0.00016973,2]
[399540027,1766465446510,-500.0,0.00016973,2]
[399540028,1766465446519,-500.0,0.00016973,2]
[399540029,1766465446529,-500.0,0.00016973,2]
[399540030,1766465446538,-500.0,0.00016973,2]
[399540031,1766465446547,-500.0,0.00016973,2]
[399540032,1766465446557,-564.0,0.00016973,2]
[399540033,1766465446566,-715.0,0.00016973,2]
[399540034,1766465446575,-500.0,0.00016973,2]
[399540035,1766465446584,-500.0,0.00016973,2]
[399540036,1766465446594,-474.0,0.00016973,2]
[399540037,1766465446604,-1005.0,0.00016973,2]
[399540038,1766465446613,-500.0,0.00016973,2]
[399540039,1766465446623,-150.0,0.00016973,2]
[399540040,1766465446632,-150.0,0.00016973,2]
[399540041,1766465446642,-217.97780546,0.00016983,2]
[399540042,1766465446651,-500.0,0.00016983,2]
[399540043,1766465446661,-600.0,0.00016986,2]
[399540044,1766465446669,-197.6160128,0.00016986,2]
[399540045,1766465446679,-194.61616776,0.00016986,2]
[399540046,1766465446688,-157.6823216,0.00016986,2]
[399540047,1766465446698,-1557.0,0.00016987,2]
[399540048,1766465446708,-1283.76444892,0.0001699,2]
[399540049,1766465446717,-1283.76444892,0.0001699,2]
[399540050,1766465446727,-151.0,0.00016995,2]
[399540051,1766465446736,-528.48122381,0.00016997,2]
[399540052,1766465446746,-165.4969409,0.00016997,2]
[399540053,1766465446755,-114111.5038102,0.00016998,2]
[399540054,1766465446764,-9248.2710892,0.00016998,2]
[399540055,1766465446774,-4532.9938015,0.00016998,2]
[399540056,1766465446783,-20018.7566993,0.00016998,2]
[399540057,1766465446792,-4535.0682784,0.00016998,2]
[399540058,1766465446801,-4151.093636,0.00016998,2]
[399540059,1766465446810,-1574.7667707,0.00016998,2]
[399540060,1766465446819,-3103.4698969,0.00016998,2]
[399540061,1766465446828,-1500.0,0.00016999,2]
[399540062,1766465446838,-1500.0,0.00016999,2]
[399540063,1766465446847,-1500.0,0.00016999,2]
[399540064,1766465446856,-1500.0,0.00016999,2]
[399540065,1766465446865,-1500.0,0.00016999,2]
[399540066,1766465446874,-1500.0,0.00016999,2]
[399540067,1766465446884,-1500.0,0.00016999,2]
[399540068,1766465446893,-1500.0,0.00016999,2]
[399540069,1766465446902,-1500.0,0.00016999,5]
[399540070,1766465446912,-1500.0,0.00016999,2]
[399540071,1766465446921,-1500.0,0.00016999,2]
[399540072,1766465446930,-1500.0,0.00016999,2]
[399540073,1766465446939,-1500.0,0.00016999,2]
[399540074,1766465446949,-1500.0,0.00016999,2]
[399540075,1766465446958,-1500.0,0.00016999,2]
[399540076,1766465446968,-1500.0,0.00016999,2]
[399540077,1766465446978,-1500.0,0.00016999,2]
[399540078,1766465446988,-1500.0,0.00016999,2]
[399540079,1766465446997,-1500.0,0.00016999,2]
[399540080,1766465447007,-1500.0,0.00016999,2]
[399540081,1766465447018,-1500.0,0.00016999,2]
[399540082,1766465447027,-1500.0,0.00016999,2]
[399540083,1766465447036,-1500.0,0.00016999,2]
[399540084,1766465447046,-1500.0,0.00016999,2]
[399540085,1766465447055,-1500.0,0.00016999,2]
[399540086,1766465447064,-1500.0,0.00016999,2]
[399540087,1766465447074,-1500.0,0.00016999,2]
[399540088,1766465447083,-1500.0,0.00016999,2]
[399540089,1766465447092,-756.67158664,0.00016999,2]
[399540090,1766465447101,-300.0,0.00016999,2]
[399540091,1766465447111,-1500.0,0.00016999,2]
[399540092,1766465447120,-1500.0,0.00016999,2]
[399540093,1766465447129,-300.0,0.00016999,2]
[399540094,1766465447138,-666.0,0.00016999,2]
[399540095,1766465447148,-150.0,0.00016999,2]
[399540096,1766465447157,-739.32,0.00016999,2]
[399540097,1766465447166,-739.32,0.00016999,2]
[399540098,1766465447175,-739.32,0.00016999,2]
[399540099,1766465447184,-739.32,0.00016999,2]
[399540100,1766465447193,-739.32,0.00016999,2]
[399540101,1766465447202,-739.32,0.00016999,2]
[399540102,1766465447211,-739.32,0.00016999,2]
[399540103,1766465447220,-739.32,0.00016999,2]
[399540104,1766465447230,-739.32,0.00016999,2]
[399540105,1766465447239,-739.32,0.00016999,2]
[399540106,1766465447248,-739.32,0.00016999,2]
[399540107,1766465447257,-739.32,0.00016999,2]
[399540108,1766465447267,-739.32,0.00016999,2]
[399540109,1766465447276,-739.32,0.00016999,2]
[399540110,1766465447285,-739.32,0.00016999,2]
[399540111,1766465447294,-739.32,0.00016999,2]
[399540112,1766465447304,-739.32,0.00016999,2]
[399540113,1766465447313,-739.37495548,0.00016999,2]
[399540114,1766465447322,-300.0,0.00016999,2]
[399540115,1766465447331,-666.0,0.00016999,2]
[399540116,1766465447340,-3479122.49577724,0.00017,2]
[399540117,1766465447350,-609104.39063815,0.00017,2]
[399540118,1766465447360,-2193.5387077,0.00017,2]
[399540119,1766465447370,-75553.0918398,0.00017,2]
[399540120,1766465447379,-2000.0,0.00017,2]
[399540121,1766465447388,-2000.0,0.00017,2]
[399540122,1766465447398,-2000.0,0.00017,2]
[399540123,1766465447411,-1973.065,0.00017,2]
[399540124,1766465447420,-1000.0,0.00017,2]
[399540125,1766465447430,-1000.0,0.00017,2]
[399540126,1766465447439,-1000.0,0.00017,2]
[399540127,1766465447451,-1000.0,0.00017,2]
[399540128,1766465447460,-265.838,0.00017,2]
[399540129,1766465447470,-1000.0,0.00017,2]
[399540130,1766465447481,-1000.0,0.00017,2]
[399540131,1766465447491,-1000.0,0.00017,2]
[399540132,1766465447500,-1000.0,0.00017,2]
[399540133,1766465447510,-1000.0,0.00017,2]
[399540134,1766465447519,-200.0,0.00017,2]
[399540135,1766465447528,-378.41057912,0.00017,2]
[399540136,1766465447538,-151.0,0.00017,2]
[399540137,1766465447548,-250.0,0.00017,2]
[399540138,1766465447632,-151.0,0.00017,2]
[399540139,1766465447642,-151.0,0.00017,2]
[399540140,1766465447651,-151.0,0.00017,2]
[399540141,1766465447661,-151.0,0.00017,2]
[399540142,1766465447670,-151.0,0.00017,2]
[399540143,1766465447679,-151.0,0.00017,2]
[399540144,1766465447688,-1000.0,0.00017,2]
[399540145,1766465447697,-151.0,0.00017,2]
[399540146,1766465447706,-210.288625,0.00017,2]
[399540147,1766465447716,-151.0,0.00017,2]
[399540148,1766465447725,-151.0,0.00017,2]
[399540149,1766465447735,-198.831341,0.00017,2]
[399540150,1766465447744,-198.831341,0.00017,2]
[399540151,1766465447753,-198.831341,0.00017,2]
[399540152,1766465447762,-198.831341,0.00017,2]
[399540153,1766465447771,-200.0,0.00017,2]
[399540154,1766465447780,-151.0,0.00017,2]
[399540155,1766465447790,-151.0,0.00017,2]
[399540156,1766465447799,-189.0,0.00017,2]
[399540157,1766465447808,-500.0,0.00017,2]
[399540158,1766465447818,-564.0,0.00017,2]
[399540159,1766465447829,-715.0,0.00017,2]
[399540160,1766465447839,-500.0,0.00017,2]
[399540161,1766465447849,-500.0,0.00017,2]
[399540162,1766465447859,-474.0,0.00017,2]
[399540163,1766465447869,-1005.0,0.00017,2]
[399540164,1766465447878,-500.0,0.00017,2]
[399540165,1766465447887,-150.0,0.00017,2]
[399540166,1766465447897,-215.0,0.0001701,2]
[399540167,1766465447906,-500.0,0.00017028,2]
[399540168,1766465447916,-564.0,0.00017028,2]
[399540169,1766465447930,-715.0,0.00017028,2]
[399540170,1766465447939,-500.0,0.00017028,2]
[399540171,1766465447949,-417.77127482,0.00017028,2]
[399540172,1766465447957,-474.0,0.00017028,2]
[399540173,1766465447967,-1005.0,0.00017028,2]
[399540174,1766465447976,-500.0,0.00017028,2]
[399540175,1766465447986,-206.79834017,0.00017028,2]
[399540176,1766465447996,-215.0,0.00017041,2]
[399540177,1766465448005,-189.0,0.00017047,2]
[399540178,1766465448014,-500.0,0.00017055,2]
[399540179,1766465448023,-564.0,0.00017055,2]
[399540180,1766465448033,-715.0,0.00017055,2]
[399540181,1766465448043,-500.0,0.00017055,2]
[399540182,1766465448054,-474.0,0.00017055,2]
[399540183,1766465448064,-1005.0,0.00017055,2]
[399540184,1766465448076,-500.0,0.00017055,2]
[399540185,1766465448087,-500.0,0.00017083,2]
[399540186,1766465448096,-564.0,0.00017083,2]
[399540187,1766465448105,-715.0,0.00017083,2]
[399540188,1766465448114,-500.0,0.00017083,2]
[399540189,1766465448123,-474.0,0.00017083,2]
[399540190,1766465448132,-1005.0,0.00017083,2]